bitfinex-derivatives/quotes_SOLF0:USTF0_20251126
["timestamp","ask_amount","ask_price","bid_price","bid_amount"]
[1764125834436,6.4673,139.23,139.21,0.05180214]
[1764125840546,6.4673,139.23,139.21,3.08180214]
[1764125840746,104.13134188,139.29,139.21,3.08180214]
[1764125841042,5.43751903,139.28,139.21,3.08180214]
[1764125841246,5.43751903,139.27,139.22,3.03]
[1764125841549,6.4647,139.29,139.22,3.03]
[1764125842046,0.05080106,139.27,139.25,3.03]
[1764125842343,0.0485508,139.27,139.25,3.08170901]
[1764125856659,6.5138,139.31,139.26,3.03]
[1764125856855,5.46569323,139.3,139.26,3.03]
[1764125857056,5.46569323,139.29,139.26,9.4956]
[1764125857256,6.4638,139.31,139.27,3.03]
[1764125857450,5.46803922,139.3,139.27,3.03]
[1764125857655,0.05486013,139.3,139.27,3.03]
[1764125860164,0.05,139.29,139.27,3.03]
[1764125860862,0.05,139.29,139.26,3.03]
[1764125861652,6.5144,139.29,139.26,3.03]
[1764125865171,5.34151093,139.28,139.18,3.03]
[1764125865361,5.29219543,139.27,139.18,3.03]
[1764125865560,5.29219543,139.26,139.19,3.03]
[1764125865761,5.29219543,139.25,139.19,3.03]
[1764125865967,6.4664,139.25,139.19,3.03]
[1764125866363,0.05142004,139.23,139.22,3.03]
[1764125871180,6.5045,139.29,139.22,3.03]
[1764125871472,10.7229215,139.28,139.22,3.03]
[1764125871671,5.2896827,139.27,139.22,3.03]
[1764125871872,6.5045,139.29,139.22,3.03]
[1764125872075,5.29030731,139.28,139.22,3.03]
[1764125872277,5.29030731,139.28,139.19,104.19644188]
[1764125872278,0.04822588,139.26,139.25,3.02]
[1764125877978,0.09822588,139.26,139.24,27.61236751]
[1764125878184,0.09822588,139.26,139.24,3.07236751]
[1764125879080,0.04822588,139.26,139.24,3.07236751]
[1764125879285,6.51412588,139.26,139.24,3.07236751]
[1764125880476,6.56412588,139.26,139.24,3.07236751]
[1764125882676,0.04822588,139.26,139.24,3.07236751]
[1764125882982,0.09,139.32,139.25,2.88]
[1764125883284,5.2999521,139.31,139.25,2.88]
[1764125883484,5.2999521,139.3,139.25,2.88]
[1764125883686,5.2999521,139.29,139.25,2.88]
[1764125883879,0.04717179,139.28,139.27,2.88]
[1764125884080,0.05011809,139.29,139.27,2.88]
[1764125885492,5.30485867,139.28,139.27,2.88]
[1764125886408,0.05011809,139.29,139.27,2.88]
[1764125888592,0.09,139.28,139.26,2.93337822]
[1764125888890,0.09,139.28,139.26,0.05337822]
[1764125888891,5.29802849,139.27,139.26,0.05337822]
[1764125889084,5.38802849,139.27,139.26,0.05337822]
[1764125890988,5.29802849,139.27,139.26,0.05337822]
[1764125894602,5.38802849,139.27,139.26,0.05337822]
[1764125901403,0.09,139.27,139.26,0.05337822]
[1764125902097,5.38893995,139.27,139.26,0.05337822]
[1764125905406,10.85195923,139.27,139.26,0.05337822]
[1764125905709,10.85195923,139.27,139.22,3.03]
[1764125905710,0.1,139.26,139.22,3.03]
[1764125905905,5.39893995,139.25,139.22,3.03]
[1764125906208,0.1,139.25,139.22,3.03]
[1764125906709,0.14762564,139.25,139.22,3.08464374]
[1764125907211,0.1,139.24,139.22,3.08464374]
[1764125910707,6.61392564,139.25,139.22,3.08464374]
[1764125911709,5.30135646,139.24,139.22,3.08464374]
[1764125911924,6.61392564,139.25,139.22,3.08464374]
[1764125912106,5.30042855,139.24,139.22,3.08464374]
[1764125912413,0.14762564,139.25,139.22,3.08464374]
[1764125913513,5.3007518,139.24,139.22,3.08464374]
[1764125913705,0.14762564,139.25,139.22,3.08464374]
[1764125914013,5.30077641,139.24,139.22,3.08464374]
[1764125914214,0.14762564,139.25,139.22,3.08464374]
[1764125915416,5.30178089,139.24,139.22,3.08464374]
[1764125915713,0.14762564,139.25,139.22,3.08464374]
[1764125915915,5.40178089,139.24,139.22,3.08464374]
[1764125916107,0.1,139.24,139.22,3.08464374]
[1764125916307,6.61392564,139.25,139.22,3.08464374]
[1764125916507,5.30170871,139.24,139.22,3.08464374]
[1764125916716,6.61392564,139.25,139.22,3.08464374]
[1764125916917,5.30170702,139.24,139.22,3.08464374]
[1764125917215,6.61392564,139.25,139.22,3.08464374]
[1764125917411,5.30140129,139.24,139.22,3.08464374]
[1764125917604,0.1,139.24,139.22,3.08464374]
[1764125918619,6.51392564,139.25,139.22,3.08464374]
[1764125918820,5.40872242,139.24,139.22,3.08464374]
[1764125919021,6.51392564,139.25,139.22,3.08464374]
[1764125919213,5.30886949,139.24,139.22,3.08464374]
[1764125919412,0.1,139.24,139.22,3.08464374]
[1764125919619,6.61392564,139.25,139.22,3.08464374]
[1764125919819,5.30871206,139.24,139.22,3.08464374]
[1764125920021,0.1,139.24,139.22,3.08464374]
[1764125922517,6.61392564,139.25,139.22,3.08464374]
[1764125922721,0.1,139.23,139.22,0.05464374]
[1764125923014,5.30988216,139.23,139.22,3.08464374]
[1764125923922,0.14762564,139.25,139.22,3.08464374]
[1764125924118,5.40899862,139.24,139.22,3.08464374]
[1764125924321,0.1,139.24,139.22,3.08464374]
[1764125924515,5.30865961,139.23,139.22,3.08464374]
[1764125930824,0.09,139.22,139.19,3.07]
[1764125931120,5.39865961,139.21,139.19,3.07]
[1764125931322,5.30865961,139.2,139.19,3.07]
[1764125933125,5.30865961,139.2,139.18,3.12450528]
[1764125933313,5.31145159,139.19,139.18,3.12450528]
[1764125934130,6.61316175,139.21,139.18,3.12450528]
[1764125934426,5.30991799,139.2,139.18,3.12450528]
[1764125934630,6.61316175,139.21,139.18,3.12450528]
[1764125934819,5.30984933,139.2,139.18,3.12450528]
[1764125935022,6.61316175,139.21,139.18,3.12450528]
[1764125935223,5.30830404,139.2,139.18,3.12450528]
[1764125935426,6.61316175,139.21,139.18,3.12450528]
[1764125935627,5.30831825,139.2,139.18,3.12450528]
[1764125935819,6.61316175,139.21,139.18,3.12450528]
[1764125936018,5.30831685,139.2,139.18,3.12450528]
[1764125936219,6.61316175,139.21,139.18,3.12450528]
[1764125936419,5.30657376,139.2,139.18,3.12450528]
[1764125936621,6.61316175,139.21,139.18,3.12450528]
[1764125936920,5.30657376,139.2,139.18,3.12450528]
[1764125937119,6.61316175,139.21,139.18,3.12450528]
[1764125937329,5.3054822,139.2,139.18,3.12450528]
[1764125937623,6.61316175,139.21,139.18,3.12450528]
[1764125937829,5.3054822,139.2,139.18,3.12450528]
[1764125938036,5.3054822,139.19,139.18,3.12450528]
[1764125938328,6.61316175,139.21,139.18,3.12450528]
[1764125938529,5.30457037,139.2,139.18,3.12450528]
[1764125938726,6.61316175,139.21,139.18,3.12450528]
[1764125939031,5.30457039,139.2,139.18,3.12450528]
[1764125939329,0.09,139.2,139.18,3.12450528]
[1764125940334,0.05476175,139.21,139.18,3.12450528]
[1764125941924,0.15476175,139.21,139.18,3.12450528]
[1764125943926,6.62296175,139.21,139.18,3.12450528]
[1764125944126,0.1,139.2,139.18,3.12450528]
[1764125945634,6.62296175,139.21,139.18,3.12450528]
[1764125945833,5.30311327,139.2,139.18,3.12450528]
[1764125946030,6.62296175,139.21,139.18,3.12450528]
[1764125946227,5.30311327,139.2,139.18,3.12450528]
[1764125946426,6.62296175,139.21,139.18,3.12450528]
[1764125946632,5.30278811,139.2,139.18,3.12450528]
[1764125946830,6.62296175,139.21,139.18,3.12450528]
[1764125947031,5.30278811,139.2,139.18,3.12450528]
[1764125947232,6.62296175,139.21,139.18,3.12450528]
[1764125947532,5.30329116,139.2,139.18,3.12450528]
[1764125947731,6.62296175,139.21,139.18,3.12450528]
[1764125947928,5.40417219,139.2,139.18,3.12450528]
[1764125948129,0.1,139.2,139.18,3.12450528]
[1764125950637,6.5686,139.2,139.18,0.05450528]
[1764125950837,5.40191917,139.19,139.18,0.05450528]
[1764125952346,5.40191917,139.19,139.18,3.01450528]
[1764125952638,5.40191917,139.19,139.18,0.05450528]
[1764125956245,0.05476175,139.21,139.18,3.01450528]
[1764125962160,0.14476175,139.21,139.18,3.01450528]
[1764125962661,0.05476175,139.21,139.18,3.01450528]
[1764125963956,0.05476175,139.21,139.19,2.95]
[1764125965060,0.14476175,139.21,139.19,2.95]
[1764125965563,0.05476175,139.21,139.19,2.95]
[1764125966764,5.3067291,139.2,139.19,2.95]
[1764125967968,5.3067291,139.2,139.18,3.00450528]
[1764125968163,0.14476175,139.21,139.18,3.00450528]
[1764125968464,5.39858455,139.2,139.18,3.00450528]
[1764125968665,0.09,139.2,139.18,3.00450528]
[1764125969169,5.30968598,139.19,139.18,3.00450528]
[1764125972678,5.39968598,139.19,139.18,3.00450528]
[1764125972873,5.30968598,139.19,139.18,3.00450528]
[1764125981073,5.39968598,139.19,139.18,3.00450528]
[1764125982181,5.30968598,139.19,139.18,3.00450528]
[1764125983477,0.05476175,139.21,139.18,3.00450528]
[1764125983682,3.11,139.27,139.19,3.57752038]
[1764125983881,5.4686972,139.26,139.2,2.95]
[1764125984079,8.5786972,139.25,139.2,2.95]
[1764125984281,3.11,139.25,139.2,2.95]
[1764125984680,0.05506975,139.24,139.22,2.95]
[1764125988379,3.15506975,139.24,139.22,2.95]
[1764125988585,0.05506975,139.24,139.22,2.95]
[1764125997687,0.05506975,139.24,139.22,27.49]
[1764125997889,0.05506975,139.24,139.23,2.98]
[1764126001391,6.6504391,139.32,139.24,2.89]
[1764126001591,8.41503655,139.35,139.31,2.89]
[1764126001790,8.13125399,139.34,139.32,2.89]
[1764126002095,2.96,139.32,139.28,27.43]
[1764126002300,2.96,139.3,139.26,12.31]
[1764126002598,2.96,139.28,139.27,0.04956973]
[1764126004802,8.12373724,139.28,139.27,0.04956973]
[1764126005003,2.96,139.27,139.24,24.54]
[1764126005205,2.96,139.26,139.23,24.54]
[1764126005397,6.465,139.28,139.24,2.89]
[1764126005398,2.96,139.28,139.24,2.89]
[1764126005993,2.96,139.28,139.25,0.05405939]
[1764126006201,3.01244261,139.27,139.25,0.05405939]
[1764126006600,3.01244261,139.27,139.25,2.94405939]
[1764126008707,0.05244261,139.27,139.25,2.94405939]
[1764126009705,3.01244261,139.27,139.25,0.05405939]
[1764126010599,3.01244261,139.27,139.23,24.54]
[1764126010806,2.96,139.25,139.2,24.54]
[1764126011003,2.96,139.25,139.2,27.43]
[1764126011203,2.96,139.25,139.21,2.89]
[1764126011804,3.00749324,139.24,139.22,2.93796705]
[1764126014117,3.00749324,139.24,139.22,0.04796705]
[1764126018316,9.47439324,139.24,139.22,0.04796705]
[1764126018517,3.12,139.23,139.22,0.04796705]
[1764126021427,13.73600213,139.23,139.22,0.04796705]
[1764126027234,13.73600213,139.23,139.17,24.54]
[1764126027530,3.12,139.21,139.17,27.44]
[1764126028235,3.1685823,139.2,139.18,0.05222273]
[1764126028535,3.16775431,139.2,139.18,0.05222273]
[1764126030336,3.12,139.19,139.18,0.05222273]
[1764126031130,8.29292545,139.19,139.18,0.05222273]
[1764126034140,3.12,139.19,139.18,0.05222273]
[1764126038438,3.12,139.15,139.12,2.9]
[1764126038641,8.28143793,139.18,139.12,2.9]
[1764126038840,3.12,139.17,139.12,2.9]
[1764126039442,0.0470147,139.16,139.14,2.9]
[1764126039634,0.0470147,139.16,139.13,2.9471829]
[1764126039635,3.1670147,139.16,139.13,2.9471829]
[1764126040728,0.0470147,139.16,139.13,2.9471829]
[1764126041135,3.1670147,139.16,139.13,2.9471829]
[1764126041335,0.0470147,139.16,139.13,2.9471829]
[1764126048439,3.1170147,139.16,139.13,2.9471829]
[1764126049849,0.0470147,139.16,139.13,9.4188829]
[1764126050249,3.1170147,139.16,139.14,2.9]
[1764126051946,3.1170147,139.16,139.13,0.0471829]
[1764126053041,3.07,139.14,139.13,0.0471829]
[1764126057853,0.0470147,139.16,139.13,0.0471829]
[1764126057854,0.0470147,139.16,139.13,2.9471829]
[1764126060257,3.1170147,139.16,139.13,0.0471829]
[1764126061260,0.0470147,139.16,139.13,2.9471829]
[1764126062359,2.9470147,139.16,139.13,2.9471829]
[1764126062661,2.9470147,139.16,139.13,0.0471829]
[1764126063368,2.9470147,139.16,139.13,3.1971829]
[1764126063861,2.9,139.15,139.13,3.1971829]
[1764126064757,6.5175147,139.16,139.13,3.1971829]
[1764126065064,2.9,139.15,139.13,3.1971829]
[1764126067163,2.9,139.15,139.13,0.0471829]
[1764126071268,2.9,139.15,139.13,3.1971829]
[1764126071462,6.5175147,139.16,139.13,3.1971829]
[1764126071663,0.0470147,139.16,139.13,3.1971829]
[1764126073171,0.0470147,139.16,139.15,3.15]
[1764126073356,5.18931435,139.2,139.15,6.73064565]
[1764126073563,5.48218479,139.23,139.18,3.15]
[1764126073762,5.18981579,139.22,139.2,3.15]
[1764126074057,2.9,139.24,139.2,3.15]
[1764126074263,10.67059574,139.23,139.21,0.05401806]
[1764126074467,5.18798758,139.22,139.21,3.20401806]
[1764126077876,5.18798758,139.22,139.21,0.05401806]
[1764126079675,5.18798758,139.22,139.21,2.94401806]
[1764126080272,0.05046172,139.23,139.21,2.94401806]
[1764126080978,2.89046172,139.23,139.21,2.94401806]
[1764126083279,2.89046172,139.23,139.21,0.05401806]
[1764126087281,2.89046172,139.23,139.21,2.94401806]
[1764126088883,2.89046172,139.23,139.21,0.05401806]
[1764126090374,2.89046172,139.23,139.21,2.94401806]
[1764126090982,0.05046172,139.23,139.21,2.94401806]
[1764126091484,0.05046172,139.23,139.22,2.89]
[1764126092477,2.84,139.27,139.23,2.89]
[1764126092681,5.14611084,139.29,139.26,2.89]
[1764126092884,2.84,139.31,139.28,2.89]
[1764126093589,2.89526343,139.31,139.28,2.94478307]
[1764126096684,2.89526343,139.31,139.28,0.05478307]
[1764126097988,2.84,139.3,139.28,0.05478307]
[1764126099293,9.304,139.3,139.28,0.05478307]
[1764126099587,2.84,139.29,139.28,0.05478307]
[1764126111594,2.95526343,139.31,139.28,2.99478307]
[1764126111794,0.05526343,139.31,139.28,2.99478307]
[1764126112687,2.95526343,139.31,139.28,2.99478307]
[1764126119408,2.95526343,139.31,139.28,0.05478307]
[1764126119704,2.9,139.29,139.28,0.05478307]
[1764126129118,5.12405443,139.29,139.28,0.05478307]
[1764126129617,2.91,139.29,139.28,0.05478307]
[1764126130204,8.03529893,139.29,139.28,0.05478307]
[1764126131818,6.464,139.3,139.28,2.98478307]
[1764126131819,2.91,139.3,139.28,2.98478307]
[1764126132206,5.12846724,139.29,139.28,2.98478307]
[1764126132512,5.12846724,139.29,139.28,0.05478307]
[1764126133018,8.03846724,139.29,139.28,0.05478307]
[1764126133914,5.12846724,139.29,139.28,2.98478307]
[1764126134114,0.05526343,139.31,139.28,2.98478307]
[1764126135221,5.13530197,139.3,139.28,2.98478307]
[1764126135417,0.05526343,139.31,139.29,2.93]
[1764126136113,5.1370185,139.3,139.29,2.93]
[1764126139213,0.05526343,139.31,139.29,9.394]
[1764126139414,0.05526343,139.31,139.3,3.01]
[1764126139614,5.19240893,139.31,139.3,3.01]
[1764126140215,8.03240893,139.31,139.29,6.464]
[1764126140424,2.84,139.3,139.28,3.06478307]
[1764126144519,0.05526343,139.31,139.28,3.06478307]
[1764126144719,5.1350087,139.3,139.28,3.06478307]
[1764126144922,2.89526343,139.31,139.28,3.06478307]
[1764126145122,5.13425378,139.3,139.28,3.06478307]
[1764126145328,2.89526343,139.31,139.28,3.06478307]
[1764126145527,5.13453643,139.3,139.29,3.01]
[1764126148223,2.84,139.35,139.31,3.01]
[1764126148425,5.1031761,139.34,139.33,3.01]
[1764126148629,2.84,139.36,139.33,3.01]
[1764126148829,2.84,139.36,139.32,27.53]
[1764126149030,2.84,139.36,139.32,33.9927]
[1764126149229,0.0455159,139.35,139.33,0.05374003]
[1764126149429,2.8855159,139.35,139.33,0.05374003]
[1764126151027,2.8855159,139.35,139.33,3.06374003]
[1764126152633,0.0455159,139.35,139.33,3.06374003]
[1764126154334,2.8855159,139.35,139.33,0.05374003]
[1764126161743,9.3471159,139.35,139.33,0.05374003]
[1764126162042,2.84,139.34,139.33,0.05374003]
[1764126171151,2.84,139.34,139.31,24.52]
[1764126171348,2.84,139.34,139.31,5.2077701]
[1764126171549,2.98,139.32,139.31,5.2077701]
[1764126172548,8.06001789,139.32,139.31,5.2077701]
[1764126174459,9.4434,139.31,139.3,0.04541106]
[1764126174644,2.98,139.3,139.24,9.4163]
[1764126175650,2.98,139.27,139.26,0.04537021]
[1764126176560,2.98,139.26,139.19,5.23603012]
[1764126176850,2.98,139.23,139.15,2.28603012]
[1764126177052,2.98,139.22,139.16,24.52]
[1764126177248,2.98,139.21,139.16,24.52]
[1764126177456,2.98,139.2,139.16,24.52]
[1764126177642,2.98,139.18,139.17,0.05046342]
[1764126181756,2.98,139.18,139.15,24.52]
[1764126181969,3.0,139.17,139.1,24.54]
[1764126182258,3.0,139.17,139.11,3.11]
[1764126182558,3.57863916,139.23,139.15,3.11]
[1764126182744,100.5966,139.24,139.18,0.0459954]
[1764126182745,0.05233545,139.2,139.18,0.0459954]
[1764126184861,0.05233545,139.2,139.18,3.1559954]
[1764126189965,0.05233545,139.2,139.18,0.0459954]
[1764126190264,0.05233545,139.2,139.18,3.1559954]
[1764126190455,109.18498862,139.29,139.18,3.1559954]
[1764126190662,109.18498862,139.29,139.18,3.11]
[1764126191367,0.04950921,139.25,139.23,3.11]
[1764126191560,0.05260397,139.25,139.24,3.11]
[1764126191759,104.11613916,139.32,139.24,3.11]
[1764126191959,6.4635,139.31,139.24,3.11]
[1764126192667,0.04778067,139.29,139.26,0.05105315]
[1764126195357,100.60848067,139.29,139.26,0.05105315]
[1764126196355,6.465,139.28,139.26,0.05105315]
[1764126197774,6.4663,139.25,139.22,24.56]
[1764126198568,6.4663,139.25,139.22,27.51]
[1764126198768,0.04945576,139.25,139.23,2.95]
[1764126199467,0.04945576,139.25,139.22,27.56420741]
[1764126200369,0.04945576,139.25,139.22,24.61420741]
[1764126201369,0.04945576,139.25,139.22,27.56420741]
[1764126206877,6.51575576,139.25,139.22,0.05420741]
[1764126207082,0.04945576,139.25,139.22,0.05420741]
[1764126207475,6.4668,139.24,139.22,0.05420741]
[1764126210075,6.4668,139.24,139.22,3.00420741]
[1764126213787,0.04945576,139.25,139.22,3.00420741]
[1764126214896,0.04945576,139.25,139.24,2.95]
[1764126215186,405.58813916,139.37,139.24,2.95]
[1764126215187,10.48985802,139.31,139.25,2.95]
[1764126215387,5.42921797,139.34,139.26,2.95]
[1764126215575,10.51182763,139.33,139.26,2.95]
[1764126215781,10.51182763,139.32,139.27,2.95]
[1764126215982,5.42921797,139.32,139.27,2.95]
[1764126216182,5.14137956,139.31,139.29,2.95]
[1764126216475,0.05526023,139.31,139.29,2.95]
[1764126220187,0.05526023,139.31,139.28,3.00166073]
[1764126220988,0.05526023,139.31,139.28,0.05166073]
[1764126221187,0.05526023,139.31,139.23,2.95]
[1764126221188,114.61711874,139.3,139.23,2.95]
[1764126221378,105.58951527,139.29,139.23,2.95]
[1764126222190,0.05300702,139.27,139.25,0.05254479]
[1764126222387,6.51850702,139.27,139.25,0.05254479]
[1764126227994,6.51850702,139.27,139.25,2.89254479]
[1764126227995,0.05300702,139.27,139.25,2.89254479]
[1764126232099,5.46444122,139.32,139.26,2.84]
[1764126232393,10.50908388,139.31,139.26,2.84]
[1764126232699,5.04464266,139.3,139.26,2.84]
[1764126232891,5.46556902,139.33,139.26,2.84]
[1764126233086,0.05209863,139.29,139.27,2.88538976]
[1764126233292,0.04669684,139.29,139.27,2.88538976]
[1764126236996,0.04669684,139.29,139.27,27.44538976]
[1764126237305,0.04669684,139.29,139.28,2.84]
[1764126241106,0.04669684,139.29,139.27,0.04538976]
[1764126242409,6.51109684,139.29,139.27,0.04538976]
[1764126242806,5.04497605,139.28,139.27,0.04538976]
[1764126244307,10.50976358,139.28,139.27,0.04538976]
[1764126246706,10.50976358,139.28,139.2,2.28623581]
[1764126246707,100.5815,139.26,139.2,2.99]
[1764126246907,100.6083,139.22,139.17,2.99]
[1764126247113,5.0495808,139.21,139.17,2.99]
[1764126247411,6.4692,139.19,139.17,2.99]
[1764126247807,6.52145116,139.19,139.17,3.03959326]
[1764126249215,0.05225116,139.19,139.17,3.03959326]
[1764126254314,0.05225116,139.19,139.17,0.04959326]
[1764126256007,0.05225116,139.19,139.17,3.03959326]
[1764126267323,6.52135116,139.19,139.17,3.03959326]
[1764126274628,100.5867,139.25,139.19,2.99]
[1764126274827,105.65713515,139.25,139.19,2.99]
[1764126275620,0.04641127,139.23,139.21,3.03802262]
[1764126275816,0.04641127,139.23,139.21,3.04300413]
[1764126276422,6.4677,139.22,139.21,3.04300413]
[1764126284040,0.04641127,139.23,139.21,3.04300413]
[1764126287944,6.4683,139.21,139.18,3.05]
[1764126288947,6.5225447,139.21,139.18,3.09835754]
[1764126289547,6.4686,139.2,139.18,3.09835754]
[1764126291552,0.0542447,139.21,139.18,3.09835754]
[1764126291744,5.07775046,139.2,139.18,3.09835754]
[1764126291946,0.0542447,139.21,139.18,3.09835754]
[1764126292145,5.07775138,139.2,139.18,3.09835754]
[1764126292347,0.0542447,139.21,139.18,3.09835754]
[1764126292541,5.07783104,139.2,139.18,3.09835754]
[1764126292741,0.0542447,139.21,139.18,3.09835754]
[1764126292942,5.07939814,139.2,139.18,3.09835754]
[1764126293152,0.0542447,139.21,139.18,3.09835754]
[1764126293348,5.07928648,139.2,139.18,3.09835754]
[1764126293542,0.0542447,139.21,139.18,3.09835754]
[1764126293743,5.07947435,139.2,139.18,3.09835754]
[1764126293944,0.0542447,139.21,139.18,3.09835754]
[1764126294452,5.07987909,139.2,139.18,3.09835754]
[1764126294654,6.5224447,139.21,139.18,3.09835754]
[1764126294855,5.07987943,139.2,139.18,3.09835754]
[1764126295054,6.5224447,139.21,139.18,3.09835754]
[1764126295253,5.07973621,139.2,139.18,3.09835754]
[1764126295459,6.5224447,139.21,139.18,3.09835754]
[1764126295642,5.0797354,139.2,139.18,3.09835754]
[1764126295842,6.5224447,139.21,139.18,3.09835754]
[1764126296048,5.0797354,139.2,139.18,3.09835754]
[1764126296355,6.5224447,139.21,139.18,3.09835754]
[1764126296658,5.07978114,139.2,139.18,3.09835754]
[1764126296845,6.5224447,139.21,139.18,3.09835754]
[1764126297046,5.07978114,139.2,139.18,3.09835754]
[1764126297253,6.5224447,139.21,139.18,3.09835754]
[1764126297452,5.07982982,139.2,139.18,3.09835754]
[1764126297658,6.5224447,139.21,139.18,3.09835754]
[1764126297855,5.07982982,139.2,139.18,3.09835754]
[1764126298154,6.5224447,139.21,139.18,3.09835754]
[1764126298354,5.07991579,139.2,139.18,3.09835754]
[1764126298653,6.5224447,139.21,139.18,3.09835754]
[1764126298856,5.07991553,139.2,139.18,3.09835754]
[1764126299055,6.5224447,139.21,139.18,3.09835754]
[1764126299256,5.07991553,139.2,139.18,3.09835754]
[1764126299459,6.5224447,139.21,139.18,3.09835754]
[1764126299651,5.08018637,139.2,139.18,3.09835754]
[1764126299855,6.5224447,139.21,139.18,3.09835754]
[1764126300151,5.08018637,139.2,139.18,3.09835754]
[1764126300353,6.5224447,139.21,139.18,3.09835754]
[1764126300554,5.08030818,139.2,139.18,3.09835754]
[1764126300756,6.5224447,139.21,139.18,3.09835754]
[1764126300958,5.08012152,139.2,139.18,3.09835754]
[1764126301158,6.4687,139.2,139.18,3.09835754]
[1764126304665,0.0542447,139.21,139.18,3.09835754]
[1764126304859,5.08111596,139.2,139.18,3.09835754]
[1764126305166,0.0542447,139.21,139.18,3.09835754]
[1764126305759,6.4665,139.25,139.18,3.09835754]
[1764126305959,10.53412125,139.24,139.18,3.09835754]
[1764126306260,5.08228028,139.23,139.19,3.11]
[1764126306458,5.08223391,139.22,139.19,3.11]
[1764126306660,6.63769185,139.27,139.19,3.11]
[1764126306861,100.5699,139.28,139.22,3.11]
[1764126306862,10.53390207,139.26,139.22,3.11]
[1764126307062,5.45330469,139.27,139.23,3.11]
[1764126307365,5.45135129,139.3,139.26,3.11]
[1764126307565,5.45135129,139.29,139.26,3.11]
[1764126307761,0.9,139.32,139.26,3.11]
[1764126307960,0.05159543,139.29,139.26,3.16011063]
[1764126308357,6.34885691,139.28,139.26,0.05011063]
[1764126308667,0.9,139.28,139.26,0.05011063]
[1764126312166,0.9,139.27,139.26,0.05011063]
[1764126313759,0.85,139.23,139.2,3.11]
[1764126314661,0.85,139.23,139.2,3.15631771]
[1764126314662,0.90315576,139.23,139.2,3.15631771]
[1764126314860,7.37045576,139.23,139.2,3.15631771]
[1764126316257,0.85,139.22,139.2,3.15631771]
[1764126316659,0.85,139.21,139.2,0.04631771]
[1764126319466,6.37525472,139.23,139.2,3.09631771]
[1764126319668,5.05100408,139.22,139.2,3.09631771]
[1764126319965,6.37525472,139.23,139.2,3.09631771]
[1764126320162,0.86,139.21,139.2,0.04631771]
[1764126320566,5.91074964,139.21,139.2,0.04631771]
[1764126323169,0.86,139.21,139.2,0.04631771]
[1764126323370,5.91035821,139.21,139.2,0.04631771]
[1764126324370,5.91278995,139.21,139.2,0.04631771]
[1764126324666,5.91284574,139.21,139.2,0.04631771]
[1764126326965,5.91284574,139.21,139.12,3.05]
[1764126327172,11.32505311,139.2,139.13,3.05]
[1764126327467,0.81,139.2,139.13,3.05]
[1764126328069,0.05049899,139.18,139.16,3.05]
[1764126330363,0.86049899,139.18,139.15,3.10271286]
[1764126332063,0.05049899,139.18,139.15,3.10271286]
[1764126340783,6.51999899,139.18,139.15,3.10271286]
[1764126341369,0.81,139.17,139.15,3.10271286]
[1764126341683,7.32999899,139.18,139.15,3.10271286]
[1764126342480,6.51999899,139.18,139.15,3.10271286]
[1764126346179,0.05049899,139.18,139.15,3.10271286]
[1764126350585,7.33009899,139.18,139.15,3.10271286]
[1764126352895,0.81,139.17,139.15,3.10271286]
[1764126353401,0.81,139.17,139.15,0.05271286]
[1764126353804,0.81,139.17,139.15,2.98271286]
[1764126355604,7.2801,139.17,139.15,2.98271286]
[1764126361313,5.08438423,139.16,139.15,2.98271286]
[1764126361509,5.89438423,139.16,139.15,0.05271286]
[1764126361705,11.37500619,139.16,139.15,0.05271286]
[1764126363113,10.56500619,139.16,139.15,3.12271286]
[1764126363305,5.08438423,139.16,139.15,3.12271286]
[1764126363705,10.5643797,139.16,139.15,3.12271286]
[1764126364006,5.08438423,139.16,139.15,3.12271286]
[1764126364316,10.56460535,139.16,139.15,3.12271286]
[1764126365511,5.08438423,139.16,139.15,3.12271286]
[1764126365708,5.89438423,139.16,139.15,0.05271286]
[1764126366017,11.37541055,139.16,139.15,0.05271286]
[1764126379711,10.56541055,139.16,139.15,2.93271286]
[1764126379912,11.37541055,139.16,139.15,0.05271286]
[1764126403145,17.99785792,139.16,139.15,0.05271286]
[1764126409046,11.37541055,139.16,139.15,0.05271286]
[1764126415150,18.04477095,139.16,139.15,0.05271286]
[1764126417153,17.23477095,139.16,139.15,3.02271286]
[1764126417650,11.38541055,139.16,139.15,0.05271286]
[1764126422058,18.05477095,139.16,139.15,0.05271286]